fUST/lending_fUST_20250227
["ID","MTS","AMOUNT","RATE_DAILY","PERIOD"]
[354646193,1740602502060,-579.96,0.00055616,120]
[354646194,1740602502107,-500.0,0.00055616,120]
[354646195,1740602502159,-500.0,0.00055616,120]
[354646196,1740602502210,-500.0,0.00055616,120]
[354646197,1740602502262,-533.85,0.00055616,120]
[354646198,1740602502317,-500.0,0.00055616,120]
[354646199,1740602502369,-500.0,0.00055616,120]
[354646200,1740602502421,-500.0,0.00055616,120]
[354646201,1740602502473,-500.0,0.00055616,120]
[354646202,1740602502526,-500.0,0.00055616,120]
[354646203,1740602502579,-515.52,0.00055616,120]
[354646204,1740602502632,-500.0,0.00055616,120]
[354646205,1740602502683,-500.0,0.00055616,120]
[354646206,1740602502735,-500.0,0.00055616,7]
[354646207,1740602502785,-511.04,0.00055616,120]
[354646208,1740602502833,-500.0,0.00055616,120]
[354646209,1740602502881,-500.0,0.00055616,120]
[354646210,1740602502927,-500.0,0.00055616,120]
[354646211,1740602502974,-500.0,0.00055888,120]
[354646212,1740602503019,-500.0,0.00055889,120]
[354646213,1740602503063,-500.0,0.00055889,120]
[354646214,1740602503107,-500.0,0.00055889,120]
[354646215,1740602503158,-500.0,0.00055889,120]
[354646216,1740602503206,-500.0,0.00055889,120]
[354646217,1740602503259,-500.0,0.00055889,120]
[354646218,1740602503309,-500.0,0.00055889,120]
[354646219,1740602503360,-500.0,0.00055889,120]
[354646220,1740602503410,-500.0,0.00055889,120]
[354646221,1740602503462,-549.27,0.00055889,120]
[354646222,1740602503513,-500.0,0.00055889,120]
[354646223,1740602503565,-500.0,0.00055889,120]
[354646224,1740602503616,-500.0,0.00055889,120]
[354646225,1740602503672,-500.0,0.00055889,120]
[354646226,1740602503725,-500.0,0.00055889,120]
[354646227,1740602503776,-500.0,0.00055889,120]
[354646228,1740602503825,-500.0,0.00055889,120]
[354646229,1740602503874,-500.0,0.00055889,45]
[354646230,1740602503923,-500.0,0.00055889,120]
[354646231,1740602503969,-500.0,0.00055889,120]
[354646232,1740602504018,-500.0,0.00055889,120]
[354646233,1740602504068,-500.0,0.00055889,120]
[354646234,1740602504116,-520.43,0.00055889,120]
[354646235,1740602504169,-500.0,0.00055889,120]
[354646236,1740602504222,-500.0,0.00055889,120]
[354646237,1740602504276,-500.0,0.00055889,120]
[354646238,1740602504328,-500.0,0.00055889,120]
[354646239,1740602504379,-500.0,0.00055889,120]
[354646240,1740602504432,-500.0,0.00055889,120]
[354646241,1740602504486,-510.47,0.00055889,120]
[354646242,1740602504537,-265.26645994,0.00055889,120]
[354646243,1740602504588,-500.0,0.00055889,120]
[354646244,1740602504640,-500.0,0.00055889,120]
[354646245,1740602504691,-500.0,0.00055889,120]
[354646246,1740602504745,-500.0,0.00055889,120]
[354646247,1740602504796,-500.0,0.00055889,120]
[354646248,1740602504844,-588.48,0.00055889,120]
[354646249,1740602504893,-216.31,0.0005589,7]
[354646250,1740602504944,-500.0,0.0005589,120]
[354646251,1740602504994,-233.33271165,0.0005589,120]
[354646252,1740602505046,-500.0,0.0005589,120]
[354646253,1740602505101,-500.0,0.0005589,120]
[354646254,1740602505158,-500.0,0.0005589,120]
[354646255,1740602505210,-500.0,0.0005589,120]
[354646256,1740602505263,-500.0,0.0005589,120]
[354646257,1740602505317,-500.0,0.0005589,120]
[354646258,1740602505371,-579.96,0.0005589,120]
[354646259,1740602505425,-500.0,0.0005589,120]
[354646260,1740602505481,-500.0,0.0005589,120]
[354646261,1740602505534,-500.0,0.0005589,120]
[354646262,1740602505585,-533.85,0.0005589,120]
[354646263,1740602505634,-500.0,0.0005589,120]
[354646264,1740602505685,-500.0,0.0005589,120]
[354646265,1740602505854,-500.0,0.0005589,120]
[354646266,1740602505912,-500.0,0.0005589,120]
[354646267,1740602505961,-500.0,0.0005589,120]
[354646268,1740602506012,-515.52,0.0005589,120]
[354646269,1740602506061,-500.0,0.0005589,120]
[354646270,1740602506111,-500.0,0.0005589,120]
[354646271,1740602506164,-500.0,0.0005589,7]
[354646272,1740602506216,-511.04,0.0005589,120]
[354646273,1740602506269,-500.0,0.0005589,120]
[354646274,1740602506327,-610.86122712,0.0005589,120]
[354646275,1740602506385,-500.0,0.0005589,120]
[354646276,1740602506447,-19607.61712864,0.0005589,7]
[354646277,1740602506504,-500.0,0.00056162,120]
[354646278,1740602506557,-500.0,0.00056163,120]
[354646279,1740602506612,-500.0,0.00056163,120]
[354646280,1740602506665,-500.0,0.00056163,120]
[354646281,1740602506719,-500.0,0.00056163,120]
[354646282,1740602506772,-500.0,0.00056163,120]
[354646283,1740602506824,-500.0,0.00056163,120]
[354646284,1740602506877,-500.0,0.00056163,120]
[354646285,1740602506928,-500.0,0.00056163,120]
[354646286,1740602506976,-500.0,0.00056163,120]
[354646287,1740602507024,-549.27,0.00056163,120]
[354646288,1740602507071,-500.0,0.00056163,120]
[354646289,1740602507122,-500.0,0.00056163,120]
[354646290,1740602507175,-500.0,0.00056163,120]
[354646291,1740602507231,-500.0,0.00056163,120]
[354646292,1740602507284,-500.0,0.00056163,120]
[354646293,1740602507339,-500.0,0.00056163,120]
[354646294,1740602507394,-500.0,0.00056163,120]
[354646295,1740602507453,-500.0,0.00056163,45]
[354646296,1740602507506,-500.0,0.00056163,120]
[354646297,1740602507558,-500.0,0.00056163,120]
[354646298,1740602507609,-500.0,0.00056163,120]
[354646299,1740602507659,-500.0,0.00056163,120]
[354646300,1740602507709,-520.43,0.00056163,120]
[354646301,1740602507757,-500.0,0.00056163,120]
[354646302,1740602507805,-500.0,0.00056163,120]
[354646303,1740602507857,-500.0,0.00056163,120]
[354646304,1740602507917,-500.0,0.00056163,120]
[354646305,1740602507974,-500.0,0.00056163,120]
[354646306,1740602508027,-500.0,0.00056163,120]
[354646307,1740602508081,-510.47,0.00056163,120]
[354646308,1740602508135,-509.52,0.00056163,120]
[354646309,1740602508194,-500.0,0.00056163,120]
[354646310,1740602508250,-500.0,0.00056163,120]
[354646311,1740602508307,-500.0,0.00056163,120]
[354646312,1740602508364,-500.0,0.00056163,120]
[354646313,1740602508420,-500.0,0.00056164,120]
[354646314,1740602508477,-216.31,0.00056164,7]
[354646315,1740602508532,-500.0,0.00056164,120]
[354646316,1740602508585,-500.0,0.00056164,120]
[354646317,1740602508641,-500.0,0.00056164,120]
[354646318,1740602508696,-500.0,0.00056164,120]
[354646319,1740602508745,-500.0,0.00056164,120]
[354646320,1740602508796,-500.0,0.00056164,120]
[354646321,1740602508845,-500.0,0.00056164,120]
[354646322,1740602508894,-579.96,0.00056164,120]
[354646323,1740602508947,-500.0,0.00056164,120]
[354646324,1740602509001,-500.0,0.00056164,120]
[354646325,1740602509056,-500.0,0.00056164,120]
[354646326,1740602509109,-533.85,0.00056164,120]
[354646327,1740602509162,-457.98689309,0.00056164,120]
[354646328,1740602509215,-500.0,0.00056164,120]
[354646329,1740602509269,-500.0,0.00056164,120]
[354646330,1740602509320,-365.42994206,0.00056164,120]
[354646331,1740602509369,-500.0,0.00056164,120]
[354646332,1740602509418,-515.52,0.00056164,120]
[354646333,1740602509468,-500.0,0.00056164,120]
[354646334,1740602509516,-500.0,0.00056164,120]
[354646335,1740602509562,-500.0,0.00056164,7]
[354646336,1740602509606,-511.04,0.00056164,120]
[354646337,1740602509654,-500.0,0.00056164,120]
[354646338,1740602509710,-500.0,0.00056164,120]
[354646339,1740602509758,-362.17799561,0.00056169,120]
[354646340,1740602509894,-181.79631527,0.00056169,120]
[354646341,1740602509951,-500.0,0.00056169,31]
[354646342,1740602510004,-500.0,0.00056169,120]
[354646343,1740602510051,-212.38078504,0.00056169,31]
[354646344,1740602510100,-500.0,0.00056169,31]
[354646345,1740602510145,-500.0,0.00056169,120]
[354646346,1740602510193,-500.0,0.00056169,31]
[354646347,1740602510241,-630.49193942,0.00056169,120]
[354646348,1740602510286,-500.0,0.00056169,120]
[354646349,1740602510331,-500.0,0.00056436,120]
[354646350,1740602510376,-586.86064603,0.00056437,120]
[354646351,1740602510422,-500.0,0.00056437,120]
[354646352,1740602510468,-500.0,0.00056437,120]
[354646353,1740602510514,-500.0,0.00056437,120]
[354646354,1740602510561,-500.0,0.00056437,120]
[354646355,1740602510605,-523.10610799,0.00056437,120]
[354646356,1740602510650,-500.0,0.00056437,120]
[354646357,1740602510698,-500.0,0.00056437,120]
[354646358,1740602510745,-216.40990958,0.00056437,120]
[354646359,1740602510795,-549.27,0.00056437,120]
[354646360,1740602510842,-500.0,0.00056437,120]
[354646361,1740602510889,-500.0,0.00056437,120]
[354646362,1740602510945,-500.0,0.00056437,120]
[354646363,1740602510993,-500.0,0.00056437,120]
[354646364,1740602511038,-500.0,0.00056437,120]
[354646365,1740602511086,-500.0,0.00056437,120]
[354646366,1740602511138,-500.0,0.00056437,120]
[354646367,1740602511194,-500.0,0.00056437,45]
[354646368,1740602511244,-500.0,0.00056437,120]
[354646369,1740602511295,-500.0,0.00056437,120]
[354646370,1740602511345,-500.0,0.00056437,120]
[354646371,1740602511393,-404.00932695,0.00056437,120]
[354646372,1740602511447,-520.43,0.00056437,120]
[354646373,1740602511501,-500.0,0.00056437,120]
[354646374,1740602511554,-500.0,0.00056437,120]
[354646375,1740602511604,-185.11539352,0.00056437,120]
[354646376,1740602511658,-500.0,0.00056437,120]
[354646377,1740602511707,-500.0,0.00056437,120]
[354646378,1740602511755,-500.0,0.00056437,120]
[354646379,1740602511804,-510.47,0.00056437,120]
[354646380,1740602511851,-500.0,0.00056437,120]
[354646381,1740602511896,-522.75378461,0.00056437,120]
[354646382,1740602511945,-640.1,0.00056437,120]
[354646383,1740602511987,-500.0,0.00056437,120]
[354646384,1740602512030,-500.0,0.00056438,120]
[354646385,1740602512071,-216.31,0.00056438,7]
[354646386,1740602512116,-500.0,0.00056438,120]
[354646387,1740602512164,-500.0,0.00056438,120]
[354646388,1740602512211,-500.0,0.00056438,120]
[354646389,1740602512260,-500.0,0.00056438,120]
[354646390,1740602512308,-500.0,0.00056438,120]
[354646391,1740602512360,-500.0,0.00056438,120]
[354646392,1740602512411,-500.0,0.00056438,120]
[354646393,1740602512462,-579.96,0.00056438,120]
[354646394,1740602512513,-500.0,0.00056438,120]
[354646395,1740602512562,-500.0,0.00056438,120]
[354646396,1740602512612,-500.0,0.00056438,120]
[354646397,1740602512662,-533.85,0.00056438,120]
[354646398,1740602512711,-500.0,0.00056438,120]
[354646399,1740602512762,-500.0,0.00056438,120]
[354646400,1740602512814,-500.0,0.00056438,120]
[354646401,1740602512861,-515.52,0.00056438,120]
[354646402,1740602512910,-284.36201807,0.00056438,120]
[354646403,1740602512954,-500.0,0.00056438,120]
[354646404,1740602513000,-500.0,0.00056438,7]
[354646405,1740602513052,-511.04,0.00056438,120]
[354646406,1740602513096,-500.0,0.00056438,120]
[354646407,1740602513139,-243.59078648,0.00056438,120]
[354646408,1740602513184,-200.0,0.00056442,15]
[354646409,1740602513231,-500.0,0.0005671,120]
[354646410,1740602513285,-500.0,0.00056711,120]
[354646411,1740602513335,-174.40305399,0.00056711,120]
[354646412,1740602513383,-500.0,0.00056711,120]
[354646413,1740602513518,-500.0,0.00056711,120]
[354646414,1740602513572,-500.0,0.00056711,120]
[354646415,1740602513626,-500.0,0.00056711,120]
[354646416,1740602513677,-549.27,0.00056711,120]
[354646417,1740602513730,-500.0,0.00056711,120]
[354646418,1740602513777,-213.53,0.00056711,120]
[354646419,1740602513825,-500.0,0.00056711,120]
[354646420,1740602513872,-500.0,0.00056711,120]
[354646421,1740602513921,-437.35152032,0.00056711,120]
[354646422,1740602513968,-500.0,0.00056711,120]
[354646423,1740602514015,-500.0,0.00056711,120]
[354646424,1740602514063,-497.51042542,0.00056711,45]
[354646425,1740602514111,-500.0,0.00056711,120]
[354646426,1740602514159,-500.0,0.00056711,120]
[354646427,1740602514207,-500.0,0.00056711,120]
[354646428,1740602514254,-520.43,0.00056711,120]
[354646429,1740602514309,-500.0,0.00056711,120]
[354646430,1740602514361,-500.0,0.00056711,120]
[354646431,1740602514414,-500.0,0.00056711,120]
[354646432,1740602514466,-500.0,0.00056711,120]
[354646433,1740602514519,-500.0,0.00056711,120]
[354646434,1740602514571,-510.47,0.00056711,120]
[354646435,1740602514623,-500.0,0.00056711,120]
[354646436,1740602514675,-500.0,0.00056711,120]
[354646437,1740602514727,-500.0,0.00056712,120]
[354646438,1740602514780,-216.31,0.00056712,7]
[354646439,1740602514837,-500.0,0.00056712,120]
[354646440,1740602514888,-500.0,0.00056712,120]
[354646441,1740602514940,-500.0,0.00056712,120]
[354646442,1740602514998,-500.0,0.00056712,120]
[354646443,1740602515053,-313.10686761,0.00056712,120]
[354646444,1740602515106,-500.0,0.00056712,120]
[354646445,1740602515164,-509.83471148,0.00056712,120]
[354646446,1740602515223,-579.96,0.00056712,120]
[354646447,1740602515294,-500.0,0.00056712,120]
[354646448,1740602515347,-500.0,0.00056712,120]
[354646449,1740602515398,-500.0,0.00056712,120]
[354646450,1740602515451,-533.85,0.00056712,120]
[354646451,1740602515502,-500.0,0.00056712,120]
[354646452,1740602515552,-500.0,0.00056712,120]
[354646453,1740602515602,-500.0,0.00056712,120]
[354646454,1740602515652,-515.52,0.00056712,120]
[354646455,1740602515705,-500.0,0.00056712,120]
[354646456,1740602515757,-500.0,0.00056712,7]
[354646457,1740602515810,-511.04,0.00056712,120]
[354646458,1740602515859,-500.0,0.00056712,120]
[354646459,1740602515917,-500.0,0.00056984,120]
[354646460,1740602515992,-500.0,0.00056985,120]
[354646461,1740602516068,-500.0,0.00056985,120]
[354646462,1740602516147,-500.0,0.00056985,120]
[354646463,1740602516221,-500.0,0.00056985,120]
[354646464,1740602516270,-500.0,0.00056985,120]
[354646465,1740602516322,-549.27,0.00056985,120]
[354646466,1740602516369,-500.0,0.00056985,120]
[354646467,1740602516420,-500.0,0.00056985,120]
[354646468,1740602516469,-500.0,0.00056985,120]
[354646469,1740602516516,-401.40956201,0.00056985,120]
[354646470,1740602516564,-500.0,0.00056985,120]
[354646471,1740602516612,-271.67370485,0.00056985,120]
[354646472,1740602516662,-500.0,0.00056985,120]
[354646473,1740602516708,-500.0,0.00056985,120]
[354646474,1740602516751,-520.43,0.00056985,120]
[354646475,1740602516794,-500.0,0.00056985,120]
[354646476,1740602516836,-500.0,0.00056985,120]
[354646477,1740602516879,-500.0,0.00056985,120]
[354646478,1740602516920,-500.0,0.00056985,120]
[354646479,1740602516961,-500.0,0.00056985,120]
[354646480,1740602517003,-510.47,0.00056985,120]
[354646481,1740602517046,-500.0,0.00056985,120]
[354646482,1740602517169,-500.0,0.00056985,120]
[354646483,1740602517224,-500.0,0.00056986,120]
[354646484,1740602517279,-216.31,0.00056986,7]
[354646485,1740602517330,-500.0,0.00056986,120]
[354646486,1740602517379,-500.0,0.00056986,120]
[354646487,1740602517430,-500.0,0.00056986,120]
[354646488,1740602517479,-500.0,0.00056986,120]
[354646489,1740602517529,-500.0,0.00056986,120]
[354646490,1740602517581,-579.96,0.00056986,120]
[354646491,1740602517633,-500.0,0.00056986,120]
[354646492,1740602517684,-500.0,0.00056986,120]
[354646493,1740602517735,-500.0,0.00056986,120]
[354646494,1740602517785,-533.85,0.00056986,120]
[354646495,1740602517835,-500.0,0.00056986,120]
[354646496,1740602517884,-213.82240424,0.00056986,120]
[354646497,1740602517930,-500.0,0.00056986,120]
[354646498,1740602517977,-515.52,0.00056986,120]
[354646499,1740602518023,-500.0,0.00056986,120]
[354646500,1740602518069,-500.0,0.00056986,7]
[354646501,1740602518113,-511.04,0.00056986,120]
[354646502,1740602518161,-412.76293352,0.00056986,120]
[354646503,1740602518207,-155.0,0.00057,120]
[354646504,1740602518256,-181.13,0.00057,30]
[354646505,1740602518303,-150.0,0.00057187,15]
[354646506,1740602518351,-500.0,0.00057258,120]
[354646507,1740602518398,-432.99624211,0.00057259,120]
[354646508,1740602518442,-500.0,0.00057259,120]
[354646509,1740602518488,-500.0,0.00057259,120]
[354646510,1740602518534,-500.0,0.00057259,120]
[354646511,1740602518578,-500.0,0.00057259,120]
[354646512,1740602518624,-549.27,0.00057259,120]
[354646513,1740602518672,-500.0,0.00057259,120]
[354646514,1740602518719,-500.0,0.00057259,120]
[354646515,1740602518765,-500.0,0.00057259,120]
[354646516,1740602518807,-500.0,0.00057259,120]
[354646517,1740602518848,-533.45,0.00057259,120]
[354646518,1740602518888,-500.0,0.00057259,120]
[354646519,1740602518926,-520.43,0.00057259,120]
[354646520,1740602518965,-500.0,0.00057259,120]
[354646521,1740602519004,-500.0,0.00057259,120]
[354646522,1740602519047,-500.0,0.00057259,120]
[354646523,1740602519089,-500.0,0.00057259,120]
[354646524,1740602519132,-510.47,0.00057259,120]
[354646525,1740602519176,-531.54,0.00057259,120]
[354646526,1740602519222,-500.0,0.00057259,120]
[354646527,1740602519268,-337.45103509,0.0005726,120]
[354646528,1740602519317,-216.31,0.0005726,7]
[354646529,1740602519365,-278.4997814,0.0005726,120]
[354646530,1740602519418,-500.0,0.0005726,120]
[354646531,1740602519467,-217.27765086,0.0005726,120]
[354646532,1740602519516,-500.0,0.0005726,120]
[354646533,1740602519563,-500.0,0.0005726,120]
[354646534,1740602519611,-579.96,0.0005726,120]
[354646535,1740602519656,-500.0,0.0005726,120]
[354646536,1740602519703,-158.81047647,0.0005726,120]
[354646537,1740602519750,-500.0,0.0005726,120]
[354646538,1740602519793,-533.85,0.0005726,120]
[354646539,1740602519838,-500.0,0.0005726,120]
[354646540,1740602519882,-500.0,0.0005726,120]
[354646541,1740602519927,-515.52,0.0005726,120]
[354646542,1740602519971,-500.0,0.0005726,120]
[354646543,1740602520015,-500.0,0.0005726,7]
[354646544,1740602520059,-511.04,0.0005726,120]
[354646545,1740602520109,-491.95408385,0.00057532,120]
[354646546,1740602520158,-500.0,0.00057533,120]
[354646547,1740602520209,-500.0,0.00057533,120]
[354646548,1740602520260,-500.0,0.00057533,120]
[354646549,1740602520317,-500.0,0.00057533,120]
[354646550,1740602520500,-549.27,0.00057533,120]
[354646551,1740602520559,-500.0,0.00057533,120]
[354646552,1740602520613,-500.0,0.00057533,120]
[354646553,1740602520670,-500.0,0.00057533,120]
[354646554,1740602520731,-500.0,0.00057533,120]
[354646555,1740602520822,-500.0,0.00057533,120]
[354646556,1740602520899,-520.43,0.00057533,120]
[354646557,1740602521009,-500.0,0.00057533,120]
[354646558,1740602521060,-500.0,0.00057533,120]
[354646559,1740602521109,-622.39302588,0.00057533,120]
[354646560,1740602521156,-510.47,0.00057533,120]
[354646561,1740602521205,-500.0,0.00057533,120]
[354646562,1740602521251,-216.31,0.00057534,7]
[354646563,1740602521298,-500.0,0.00057534,120]
[354646564,1740602521348,-500.0,0.00057534,120]
[354646565,1740602521397,-500.0,0.00057534,120]
[354646566,1740602521449,-579.96,0.00057534,120]
[354646567,1740602521499,-524.78933604,0.00057534,120]
[354646568,1740602521549,-500.0,0.00057534,120]
[354646569,1740602521600,-533.85,0.00057534,120]
[354646570,1740602521649,-373.60651698,0.00057534,120]
[354646571,1740602521697,-500.0,0.00057534,120]
[354646572,1740602521744,-515.52,0.00057534,120]
[354646573,1740602521790,-500.0,0.00057534,120]
[354646574,1740602521836,-500.0,0.00057534,7]
[354646575,1740602521882,-511.04,0.00057534,120]
[354646576,1740602521927,-304.16537073,0.00057735,15]
[354646577,1740602521970,-500.0,0.00057807,120]
[354646578,1740602522014,-384.05773141,0.00057807,120]
[354646579,1740602522062,-500.0,0.00057807,120]
[354646580,1740602522110,-500.0,0.00057807,120]
[354646581,1740602522165,-549.27,0.00057807,120]
[354646582,1740602522220,-500.0,0.00057807,120]
[354646583,1740602522282,-500.0,0.00057807,120]
[354646584,1740602522339,-500.0,0.00057807,120]
[354646585,1740602522397,-500.0,0.00057807,120]
[354646586,1740602522461,-500.0,0.00057807,120]
[354646587,1740602522519,-520.43,0.00057807,120]
[354646588,1740602522576,-500.0,0.00057807,120]
[354646589,1740602522633,-500.0,0.00057807,120]
[354646590,1740602522694,-510.47,0.00057807,120]
[354646591,1740602522756,-500.0,0.00057807,120]
[354646592,1740602522815,-216.31,0.00057808,7]
[354646593,1740602522871,-582.89760002,0.00057808,120]
[354646594,1740602522928,-618.13304315,0.00057808,120]
[354646595,1740602522982,-432.87648717,0.00057808,120]
[354646596,1740602523032,-579.96,0.00057808,120]
[354646597,1740602523085,-500.0,0.00057808,120]
[354646598,1740602523151,-533.85,0.00057808,120]
[354646599,1740602523211,-306.84597564,0.00057808,120]
[354646600,1740602523270,-515.52,0.00057808,120]
[354646601,1740602523329,-300.42434091,0.00057808,120]
[354646602,1740602523386,-443.94248417,0.00057808,7]
[354646603,1740602523446,-511.04,0.00057808,120]
[354646604,1740602523504,-500.0,0.00058081,120]
[354646605,1740602523561,-500.0,0.00058081,120]
[354646606,1740602523616,-500.0,0.00058081,120]
[354646607,1740602523675,-549.27,0.00058081,120]
[354646608,1740602523735,-500.0,0.00058081,120]
[354646609,1740602523792,-500.0,0.00058081,120]
[354646610,1740602523846,-272.02876095,0.00058081,120]
[354646611,1740602523898,-500.0,0.00058081,120]
[354646612,1740602523953,-500.0,0.00058081,120]
[354646613,1740602524004,-520.43,0.00058081,120]
[354646614,1740602524056,-500.0,0.00058081,120]
[354646615,1740602524229,-500.0,0.00058081,120]
[354646616,1740602524317,-510.47,0.00058081,120]
[354646617,1740602524439,-239.21120581,0.00058081,120]
[354646618,1740602524532,-216.31,0.00058082,7]
[354646619,1740602524588,-579.96,0.00058082,120]
[354646620,1740602524640,-500.0,0.00058082,120]
[354646621,1740602524694,-533.85,0.00058082,120]
[354646622,1740602524752,-515.52,0.00058082,120]
[354646623,1740602524806,-511.04,0.00058082,120]
[354646624,1740602524860,-1000.0,0.00058352,14]
[354646625,1740602524917,-1000.0,0.00058352,14]
[354646626,1740602524974,-500.0,0.00058355,120]
[354646627,1740602525028,-500.0,0.00058355,120]
[354646628,1740602525083,-500.0,0.00058355,120]
[354646629,1740602525136,-549.27,0.00058355,120]
[354646630,1740602525188,-628.1694738,0.00058355,120]
[354646631,1740602525245,-500.0,0.00058355,120]
[354646632,1740602525300,-500.0,0.00058355,120]
[354646633,1740602525355,-500.0,0.00058355,120]
[354646634,1740602525409,-520.43,0.00058355,120]
[354646635,1740602525480,-500.0,0.00058355,120]
[354646636,1740602525542,-577.62195658,0.00058355,120]
[354646637,1740602525603,-510.47,0.00058355,120]
[354646638,1740602525661,-216.31869358,0.00058356,7]
[354646639,1740602525723,-580.17979609,0.00058356,120]
[354646640,1740602525784,-489.11695293,0.00058356,120]
[354646641,1740602525839,-533.90873749,0.00058356,120]
[354646642,1740602525890,-515.53394419,0.00058356,120]
[354646643,1740602525939,-511.13255079,0.00058356,120]
[354646644,1740602525988,-500.0,0.00058499,30]
[354646645,1740602526038,-500.0,0.00058499,120]
[354646646,1740602526091,-500.0,0.00058499,120]
[354646647,1740602526141,-500.0,0.00058499,120]
[354646648,1740602526193,-500.0,0.00058499,120]
[354646649,1740602526246,-500.0,0.00058499,120]
[354646650,1740602526295,-500.0,0.00058499,120]
[354646651,1740602526346,-500.0,0.00058499,120]
[354646652,1740602526397,-500.0,0.00058499,120]
[354646653,1740602526452,-500.0,0.00058499,120]
[354646654,1740602526505,-500.0,0.00058629,120]
[354646655,1740602526557,-412.28609336,0.00058629,120]
[354646656,1740602526611,-500.0,0.00058629,120]
[354646657,1740602526668,-549.27,0.00058629,120]
[354646658,1740602526727,-461.79511689,0.00058629,120]
[354646659,1740602526783,-500.0,0.00058629,120]
[354646660,1740602526838,-500.0,0.00058629,120]
[354646661,1740602526892,-520.43,0.00058629,120]
[354646662,1740602526942,-500.0,0.00058629,120]
[354646663,1740602526991,-510.47,0.00058629,120]
[354646664,1740602527037,-500.0,0.00058773,30]
[354646665,1740602527083,-500.0,0.00058773,120]
[354646666,1740602527134,-500.0,0.00058773,120]
[354646667,1740602527181,-500.0,0.00058773,120]
[354646668,1740602527231,-525.657844,0.00058773,120]
[354646669,1740602527279,-500.0,0.00058773,120]
[354646670,1740602527328,-500.0,0.00058773,120]
[354646671,1740602527377,-500.0,0.00058773,120]
[354646672,1740602527426,-500.0,0.00058773,120]
[354646673,1740602527476,-151.29,0.000588,30]
[354646674,1740602527527,-284.8318491,0.00058903,120]
[354646675,1740602527574,-500.0,0.00058903,120]
[354646676,1740602527625,-549.27,0.00058903,120]
[354646677,1740602527747,-500.0,0.00058903,120]
[354646678,1740602527802,-500.0,0.00058903,120]
[354646679,1740602527850,-520.43,0.00058903,120]
[354646680,1740602527900,-500.0,0.00058903,120]
[354646681,1740602527952,-510.47,0.00058903,120]
[354646682,1740602528000,-500.0,0.00059047,30]
[354646683,1740602528047,-500.0,0.00059047,120]
[354646684,1740602528094,-500.0,0.00059047,120]
[354646685,1740602528140,-500.0,0.00059047,120]
[354646686,1740602528188,-500.0,0.00059047,120]
[354646687,1740602528240,-500.0,0.00059047,120]
[354646688,1740602528294,-500.0,0.00059047,120]
[354646689,1740602528352,-500.0,0.00059047,120]
[354646690,1740602528402,-540.56559355,0.00059176,120]
[354646691,1740602528457,-549.27,0.00059176,120]
[354646692,1740602528508,-500.0,0.00059176,120]